{"text_format":"3","workbook":"xlsx","n_sheets":1,"sheets":["Кров’яний тиск і рівень глюкози"],"not_rendered":{"defined_names":9},"read":"whole","date_system":"1900"}

{"sheet":"Кров’яний тиск і рівень глюкози","index":0,"n_rows":13,"n_cols":11,"rows_kept":13,"merged":[[0,1,4,3],[0,4,0,9],[1,4,1,6],[1,7,1,9],[3,7,4,7],[3,8,4,8],[3,9,4,9]]}
[null,"Журнал кров’яного тиску\nта рівня глюкози",null,null,"Налаштуйте значення шкал у клітинках E2:J5 нижче."]
[{"$nulls":4},"КРОВ’ЯНИЙ ТИСК",null,null,"ШКАЛА РІВНЯ ГЛЮКОЗИ"]
[{"$nulls":4},120,"СИСТОЛІЧНИЙ",140,70,100,150]
[{"$nulls":4},80,"ДІАСТОЛІЧНИЙ",90,"НИЗЬКИЙ","НОРМАЛЬНИЙ","ВИСОКИЙ"]
[{"$nulls":4},"ЦІЛЬОВИЙ ТИСК",null,"ВИКЛИК ЛІКАРЯ"]
[null,"Дата","Час","Подія","Систолічний","Діастолічний","Пульс","Глюкоза","Рівень","Стан","Нотатки"]
[null,{"$f":"TODAY()","v":"2018-06-28"},"06:00:00","Прокидання",129,79,72,55,{"$f":"Кровяний_тиск_і_рівень_глюкози[[#This Row],[Глюкоза]]","v":55},{"$f":"IFERROR(IF(Кровяний_тиск_і_рівень_глюкози[[#This Row],[Рівень]]=0,\"\",IF(Кровяний_тиск_і_рівень_глюкози[[#This Row],[Рівень]]<=Г_низька,\"НИЗЬКИЙ\",IF(AND(Кровяний_тиск_і_рівень_глюкози[[#This Row],[Рівень]]>Г_низька,Кровяний_тиск_і_рівень_глюкози[[#This Row],[Рівень]]<Г_висока),\"НОРМАЛЬНИЙ\",\"ВИСОКИЙ\"))), \"\")","v":"НИЗЬКИЙ"}]
[null,{"$f":"TODAY()","v":"2018-06-28"},"07:00:00","Перед їжею",120,80,74,70,{"$f":"Кровяний_тиск_і_рівень_глюкози[[#This Row],[Глюкоза]]","v":70},{"$f":"IFERROR(IF(Кровяний_тиск_і_рівень_глюкози[[#This Row],[Рівень]]=0,\"\",IF(Кровяний_тиск_і_рівень_глюкози[[#This Row],[Рівень]]<=Г_низька,\"НИЗЬКИЙ\",IF(AND(Кровяний_тиск_і_рівень_глюкози[[#This Row],[Рівень]]>Г_низька,Кровяний_тиск_і_рівень_глюкози[[#This Row],[Рівень]]<Г_висока),\"НОРМАЛЬНИЙ\",\"ВИСОКИЙ\"))), \"\")","v":"НИЗЬКИЙ"}]
[null,"2018-06-28","09:00:00","Після їжі",133,80,75,75,{"$f":"Кровяний_тиск_і_рівень_глюкози[[#This Row],[Глюкоза]]","v":75},{"$f":"IFERROR(IF(Кровяний_тиск_і_рівень_глюкози[[#This Row],[Рівень]]=0,\"\",IF(Кровяний_тиск_і_рівень_глюкози[[#This Row],[Рівень]]<=Г_низька,\"НИЗЬКИЙ\",IF(AND(Кровяний_тиск_і_рівень_глюкози[[#This Row],[Рівень]]>Г_низька,Кровяний_тиск_і_рівень_глюкози[[#This Row],[Рівень]]<Г_висока),\"НОРМАЛЬНИЙ\",\"ВИСОКИЙ\"))), \"\")","v":"НОРМАЛЬНИЙ"}]
[null,"2018-06-28","10:00:00","Лише тиск",143,91,75,190,{"$f":"Кровяний_тиск_і_рівень_глюкози[[#This Row],[Глюкоза]]","v":190},{"$f":"IFERROR(IF(Кровяний_тиск_і_рівень_глюкози[[#This Row],[Рівень]]=0,\"\",IF(Кровяний_тиск_і_рівень_глюкози[[#This Row],[Рівень]]<=Г_низька,\"НИЗЬКИЙ\",IF(AND(Кровяний_тиск_і_рівень_глюкози[[#This Row],[Рівень]]>Г_низька,Кровяний_тиск_і_рівень_глюкози[[#This Row],[Рівень]]<Г_висока),\"НОРМАЛЬНИЙ\",\"ВИСОКИЙ\"))), \"\")","v":"ВИСОКИЙ"}]
[null,"2018-06-28","12:00:00","Перед їжею",141,84,70,140,{"$f":"Кровяний_тиск_і_рівень_глюкози[[#This Row],[Глюкоза]]","v":140},{"$f":"IFERROR(IF(Кровяний_тиск_і_рівень_глюкози[[#This Row],[Рівень]]=0,\"\",IF(Кровяний_тиск_і_рівень_глюкози[[#This Row],[Рівень]]<=Г_низька,\"НИЗЬКИЙ\",IF(AND(Кровяний_тиск_і_рівень_глюкози[[#This Row],[Рівень]]>Г_низька,Кровяний_тиск_і_рівень_глюкози[[#This Row],[Рівень]]<Г_висока),\"НОРМАЛЬНИЙ\",\"ВИСОКИЙ\"))), \"\")","v":"НОРМАЛЬНИЙ"}]
[null,{"$f":"TODAY()","v":"2018-06-28"},"15:00:00","Після їжі",132,80,68,90,{"$f":"Кровяний_тиск_і_рівень_глюкози[[#This Row],[Глюкоза]]","v":90},{"$f":"IFERROR(IF(Кровяний_тиск_і_рівень_глюкози[[#This Row],[Рівень]]=0,\"\",IF(Кровяний_тиск_і_рівень_глюкози[[#This Row],[Рівень]]<=Г_низька,\"НИЗЬКИЙ\",IF(AND(Кровяний_тиск_і_рівень_глюкози[[#This Row],[Рівень]]>Г_низька,Кровяний_тиск_і_рівень_глюкози[[#This Row],[Рівень]]<Г_висока),\"НОРМАЛЬНИЙ\",\"ВИСОКИЙ\"))), \"\")","v":"НОРМАЛЬНИЙ"},"Приймання ліків від тиску з їжею"]
[null,"Середні значення",null,null,{"$f":"SUBTOTAL(101,Кровяний_тиск_і_рівень_глюкози[Систолічний])","v":133},{"$f":"SUBTOTAL(101,Кровяний_тиск_і_рівень_глюкози[Діастолічний])","v":{"v":82.33333333333333,"d":"82"}},{"$f":"SUBTOTAL(101,Кровяний_тиск_і_рівень_глюкози[Пульс])","v":{"v":72.33333333333333,"d":"72"}},{"$f":"SUBTOTAL(101,Кровяний_тиск_і_рівень_глюкози[Глюкоза])","v":{"v":103.33333333333333,"d":"103"}}]